fUST/lending_fUST_20250912
["ID","MTS","AMOUNT","RATE_DAILY","PERIOD"]
[385181907,1757679059756,-1062.48,0.00023287,2]
[385181909,1757679059765,-167.93,0.00023361,3]
[385181911,1757679059774,-2074.89093185,0.00023495,2]
[385181912,1757679059784,-151.0,0.000235,10]
[385181915,1757679059793,-3577.33,0.000238,7]
[385181916,1757679059802,-109909.38,0.000238,7]
[385181919,1757679059812,-1184.63,0.000238,7]
[385181921,1757679059821,-151.0,0.000238,7]
[385181922,1757679059830,-151.0,0.000238,7]
[385181924,1757679059839,-151.0,0.000238,7]
[385181926,1757679059849,-152.998992,0.000238,7]
[385181928,1757679059858,-151.0,0.000238,7]
[385181930,1757679059868,-531.04384426,0.000238,7]
[385181932,1757679059877,-151.0,0.00023894,7]
[385181934,1757679059887,-151.0,0.00023894,7]
[385181936,1757679059897,-2074.89093185,0.00023894,2]
[385181938,1757679059907,-2143.0,0.000239,2]
[385181940,1757679059916,-847.0429734,0.00024,7]
[385181942,1757679059925,-217.7145751,0.00024,7]
[385181944,1757679059935,-233.13074058,0.00024,7]
[385181946,1757679059944,-2074.89093185,0.00024294,2]
[385181948,1757679059954,-1000.0,0.00024389,20]
[385181950,1757679059963,-791.0,0.00024389,20]
[385181952,1757679059973,-151.0,0.00024389,7]
[385181954,1757679059984,-151.0,0.00024389,7]
[385181956,1757679059993,-151.0,0.00024389,7]
[385181958,1757679060002,-151.0,0.00024389,7]
[385181960,1757679060011,-151.0,0.00024389,7]
[385181962,1757679060021,-151.0,0.00024389,7]
[385181964,1757679060031,-151.0,0.00024389,7]
[385181966,1757679060040,-151.0,0.00024389,7]
[385181968,1757679060051,-200.0,0.00024658,15]
[385181970,1757679060060,-161.779489,0.00024658,7]
[385181972,1757679060070,-161.779489,0.00024658,7]
[385181974,1757679060079,-161.779489,0.00024658,7]
[385181976,1757679060088,-161.779489,0.00024658,7]
[385181978,1757679060098,-380.0,0.00024658,2]
[385181980,1757679060107,-2074.89093185,0.00024693,2]
[385181982,1757679060116,-151.0,0.000248,7]
[385181984,1757679060126,-166.358716,0.000248,7]
[385181986,1757679060135,-151.0,0.000248,7]
[385181988,1757679060144,-151.0,0.000248,7]
[385181990,1757679060154,-151.0,0.000248,7]
[385181992,1757679060164,-151.0,0.000248,7]
[385181994,1757679060174,-151.0,0.000248,7]
[385181996,1757679060184,-151.0,0.000248,7]
[385181998,1757679060194,-151.0,0.000248,7]
[385182001,1757679060203,-151.0,0.000248,7]
[385182003,1757679060213,-151.0,0.000248,7]
[385182005,1757679060223,-151.0,0.000248,7]
[385182007,1757679060233,-328.4695255,0.000248,2]
[385182009,1757679060242,-404.530053,0.000248,7]
[385182011,1757679060252,-151.0,0.000248,7]
[385182013,1757679060262,-404.530053,0.000248,7]
[385182015,1757679060272,-404.530053,0.000248,7]
[385182017,1757679060282,-404.530053,0.000248,7]
[385182019,1757679060292,-151.0,0.000248,7]
[385182021,1757679060301,-151.0,0.000248,7]
[385182023,1757679060311,-151.0,0.000248,7]
[385182025,1757679060322,-659.217283,0.000248,7]
[385182027,1757679060332,-151.0,0.000248,7]
[385182029,1757679060342,-659.217283,0.000248,7]
[385182031,1757679060352,-659.217283,0.000248,7]
[385182033,1757679060361,-659.217283,0.000248,7]
[385182035,1757679060371,-151.0,0.000248,7]
[385182037,1757679060381,-151.0,0.000248,7]
[385182039,1757679060391,-151.0,0.000248,7]
[385182041,1757679060401,-273.014433,0.000248,7]
[385182043,1757679060411,-273.014433,0.000248,7]
[385182045,1757679060420,-273.014433,0.000248,7]
[385182047,1757679060430,-273.014433,0.000248,7]
[385182049,1757679060439,-151.0,0.000249,7]
[385182051,1757679060449,-151.0,0.000249,7]
[385182053,1757679060458,-162.497089,0.000249,7]
[385182055,1757679060468,-151.0,0.000249,7]
[385182057,1757679060477,-151.0,0.000249,7]
[385182059,1757679060486,-151.0,0.000249,7]
[385182061,1757679060496,-151.0,0.000249,7]
[385182063,1757679060505,-151.0,0.000249,7]
[385182065,1757679060514,-151.0,0.000249,7]
[385182067,1757679060524,-151.0,0.000249,7]
[385182069,1757679060534,-161.779489,0.000249,7]
[385182071,1757679060543,-161.779489,0.000249,7]
[385182073,1757679060552,-161.779489,0.000249,7]
[385182075,1757679060561,-161.779489,0.000249,7]
[385182077,1757679060570,-151.0,0.000249,7]
[385182078,1757679060581,-151.0,0.000249,7]
[385182080,1757679060591,-151.0,0.000249,7]
[385182082,1757679060603,-151.0,0.000249,7]
[385182084,1757679060611,-151.0,0.000249,7]
[385182086,1757679060621,-151.0,0.000249,7]
[385182087,1757679060631,-298.254785,0.000249,7]
[385182088,1757679060640,-151.0,0.000249,7]
[385182089,1757679060649,-151.0,0.000249,7]
[385182090,1757679060658,-151.0,0.000249,7]
[385182091,1757679060668,-151.0,0.000249,7]
[385182092,1757679060677,-1000.0,0.000249,2]
[385182093,1757679060686,-1000.0,0.000249,2]
[385182095,1757679060696,-1000.0,0.000249,2]
[385182097,1757679060705,-1000.0,0.000249,2]
[385182099,1757679060714,-1000.0,0.000249,2]
[385182101,1757679060723,-1000.0,0.000249,2]
[385182103,1757679060732,-1000.0,0.000249,2]
[385182105,1757679060741,-1000.0,0.000249,2]
[385182107,1757679060750,-1000.0,0.000249,2]
[385182108,1757679060760,-1000.0,0.000249,2]
[385182111,1757679060770,-1000.0,0.000249,2]
[385182112,1757679060779,-1000.0,0.000249,2]
[385182114,1757679060789,-1000.0,0.000249,2]
[385182116,1757679060798,-1000.0,0.000249,2]
[385182118,1757679060808,-1000.0,0.000249,2]
[385182120,1757679060818,-1000.0,0.000249,2]
[385182122,1757679060827,-1000.0,0.000249,2]
[385182124,1757679060837,-1000.0,0.000249,2]
[385182127,1757679060847,-1000.0,0.000249,2]
[385182129,1757679060856,-1000.0,0.000249,2]
[385182130,1757679060866,-1000.0,0.000249,2]
[385182133,1757679060875,-1000.0,0.000249,2]
[385182135,1757679060885,-1000.0,0.000249,2]
[385182137,1757679060895,-1000.0,0.000249,2]
[385182138,1757679060905,-1000.0,0.000249,2]
[385182140,1757679060914,-1000.0,0.000249,2]
[385182142,1757679060923,-1000.0,0.000249,2]
[385182144,1757679060932,-1000.0,0.000249,2]
[385182146,1757679060941,-1000.0,0.000249,2]
[385182148,1757679060950,-1000.0,0.000249,2]
[385182150,1757679060960,-1000.0,0.000249,2]
[385182152,1757679060969,-1000.0,0.000249,2]
[385182154,1757679060978,-404.530053,0.000249,7]
[385182156,1757679060987,-1000.0,0.000249,2]
[385182158,1757679060996,-1000.0,0.000249,2]
[385182160,1757679061005,-1000.0,0.000249,2]
[385182162,1757679061014,-1000.0,0.000249,2]
[385182164,1757679061024,-151.0,0.000249,7]
[385182166,1757679061033,-1000.0,0.000249,2]
[385182168,1757679061042,-404.530053,0.000249,7]
[385182170,1757679061051,-1000.0,0.000249,2]
[385182172,1757679061060,-1000.0,0.000249,2]
[385182174,1757679061069,-1000.0,0.000249,2]
[385182176,1757679061079,-1000.0,0.000249,2]
[385182178,1757679061088,-1000.0,0.000249,2]
[385182180,1757679061098,-404.530053,0.000249,7]
[385182182,1757679061107,-1000.0,0.000249,2]
[385182184,1757679061116,-1000.0,0.000249,2]
[385182186,1757679061126,-1000.0,0.000249,2]
[385182188,1757679061136,-1000.0,0.000249,2]
[385182190,1757679061145,-404.530053,0.000249,7]
[385182192,1757679061155,-1000.0,0.000249,2]
[385182194,1757679061164,-819.454209,0.000249,2]
[385182196,1757679061174,-19515.44672027,0.000249,2]
[385182199,1757679061187,-1597.11687678,0.000249,2]
[385182201,1757679061198,-4979.15808211,0.000249,2]
[385182203,1757679061209,-9497.90954273,0.000249,2]
[385182205,1757679061220,-18409.69881194,0.000249,2]
[385182207,1757679061231,-47168.09774523,0.000249,2]
[385182210,1757679061241,-13401.90980005,0.000249,2]
[385182214,1757679061279,-194.28547249,0.00013716,2]
[385182216,1757679061289,-500808.30664489,0.000249,2]
[385182219,1757679061298,-151.0,0.000249,7]
[385182221,1757679061308,-151.0,0.000249,7]
[385182223,1757679061317,-151.0,0.000249,7]
[385182225,1757679061326,-659.217283,0.000249,7]
[385182227,1757679061335,-151.0,0.000249,7]
[385182229,1757679061344,-659.217283,0.000249,7]
[385182231,1757679061354,-659.217283,0.000249,7]
[385182233,1757679061363,-659.217283,0.000249,7]
[385182235,1757679061372,-151.0,0.000249,7]
[385182237,1757679061382,-151.0,0.000249,7]
[385182239,1757679061392,-151.0,0.000249,7]
[385182240,1757679061402,-273.014433,0.000249,7]
[385182243,1757679061411,-273.014433,0.000249,7]
[385182245,1757679061421,-273.014433,0.000249,7]
[385182247,1757679061430,-151.0,0.000249,7]
[385182249,1757679061439,-273.014433,0.000249,7]
[385182251,1757679061448,-151.0,0.000249,7]
[385182253,1757679061457,-151.0,0.000249,7]
[385182264,1757679061550,-151.0,0.000249,7]
[385182266,1757679061560,-151.0,0.000249,7]
[385182268,1757679061570,-224.839219,0.000249,7]
[385182270,1757679061582,-151.0,0.000249,7]
[385182272,1757679061592,-151.0,0.000249,7]
[385182274,1757679061601,-151.0,0.000249,7]
[385182276,1757679061610,-151.0,0.000249,7]
[385182278,1757679061621,-151.0,0.000249,7]
[385182280,1757679061630,-2074.89093185,0.00025092,2]
[385182282,1757679061640,-2400.0,0.00025149,2]
[385182284,1757679061649,-250.0,0.00025321,2]
[385182286,1757679061660,-409.0,0.00025444,2]
[385182288,1757679061670,-2074.89093185,0.00025492,3]
[385182290,1757679061679,-10010.32,0.000255,7]
[385182292,1757679061689,-500.0,0.00025516,9]
[385182294,1757679061699,-500.0,0.00025692,9]
[385182296,1757679061708,-7264.003315,0.00025738,2]
[385182298,1757679061717,-7264.0033149,0.00025738,2]
[385182301,1757679061726,-554.0,0.00025754,2]
[385182302,1757679061736,-500.0,0.00025754,2]
[385182304,1757679061746,-350.0,0.00025868,2]
[385182306,1757679061755,-2074.89093185,0.00025891,4]
[385182308,1757679061764,-677818.40415672,0.00026,7]
[385182310,1757679061773,-160.0,0.00026,30]
[385182312,1757679061783,-1184.63,0.00026,7]
[385182314,1757679061792,-220.879764,0.00026,7]
[385182316,1757679061801,-151.0,0.00026,7]
[385182318,1757679061810,-206.434057,0.00026,7]
[385182320,1757679061821,-151.0,0.00026,7]
[385182322,1757679061830,-154.0479,0.00026,7]
[385182324,1757679061839,-151.0,0.00026,7]
[385182326,1757679061849,-151.0,0.00026,7]
[385182329,1757679061858,-161.779489,0.00026,7]
[385182331,1757679061867,-161.779489,0.00026,7]
[385182333,1757679061877,-161.779489,0.00026,7]
[385182335,1757679061886,-161.779489,0.00026,7]
[385182337,1757679061896,-151.0,0.00026,7]
[385182339,1757679061907,-151.0,0.00026,7]
[385182341,1757679061916,-151.0,0.00026,7]
[385182343,1757679061925,-151.0,0.00026,7]
[385182345,1757679061934,-151.0,0.00026,7]
[385182347,1757679061943,-151.0,0.00026,7]
[385182349,1757679061952,-179.446601,0.00026,7]
[385182351,1757679061961,-151.0,0.00026,7]
[385182353,1757679061970,-151.0,0.00026,7]
[385182355,1757679061979,-151.0,0.00026,7]
[385182356,1757679061988,-404.530053,0.00026,7]
[385182358,1757679062000,-151.0,0.00026,7]
[385182360,1757679062009,-404.530053,0.00026,7]
[385182363,1757679062019,-404.530053,0.00026,7]
[385182365,1757679062028,-404.530053,0.00026,7]
[385182367,1757679062038,-278.673816,0.00026,7]
[385182369,1757679062048,-151.0,0.00026,7]
[385182371,1757679062057,-151.0,0.00026,7]
[385182372,1757679062066,-659.217283,0.00026,7]
[385182374,1757679062076,-151.0,0.00026,7]
[385182376,1757679062085,-659.217283,0.00026,7]
[385182378,1757679062094,-659.217283,0.00026,7]
[385182381,1757679062104,-659.217283,0.00026,7]
[385182383,1757679062113,-151.0,0.00026,7]
[385182385,1757679062122,-151.0,0.00026,7]
[385182387,1757679062131,-151.0,0.00026,7]
[385182389,1757679062140,-273.014433,0.00026,7]
[385182391,1757679062149,-273.014433,0.00026,7]
[385182393,1757679062158,-273.014433,0.00026,7]
[385182395,1757679062168,-151.0,0.00026,7]
[385182397,1757679062177,-273.014433,0.00026,7]
[385182399,1757679062186,-1021.81280291,0.00026,2]
[385182400,1757679062195,-151.0,0.00026,7]
[385182403,1757679062204,-151.0,0.00026,7]
[385182405,1757679062214,-151.0,0.00026,7]
[385182407,1757679062223,-151.0,0.00026,7]
[385182409,1757679062232,-1262.07,0.00026017,7]
[385182411,1757679062242,-1062.48,0.00026027,4]
[385182413,1757679062251,-554.0,0.00026028,2]
[385182415,1757679062261,-500.0,0.00026028,2]
[385182417,1757679062270,-152.22,0.00026069,7]
[385182419,1757679062279,-1262.07,0.00026117,7]
[385182421,1757679062289,-191.7316302,0.0002616,2]
[385182423,1757679062298,-208.0,0.0002616,2]
[385182425,1757679062307,-152.22,0.00026169,7]
[385182427,1757679062317,-1262.07,0.00026217,7]
[385182429,1757679062326,-2400.0,0.00026245,2]
[385182430,1757679062335,-152.22,0.00026269,7]
[385182432,1757679062344,-2074.89093185,0.00026291,5]
[385182435,1757679062354,-649.0,0.000263,2]
[385182437,1757679062363,-554.0,0.00026302,2]
[385182439,1757679062372,-500.0,0.00026302,2]
[385182441,1757679062381,-1262.07,0.00026317,7]
[385182443,1757679062390,-5000.0,0.00026354,3]
[385182444,1757679062399,-3823.08388426,0.0002636,3]
[385182446,1757679062409,-152.22,0.00026369,7]
[385182448,1757679062418,-847.0429734,0.000264,3]
[385182451,1757679062428,-217.7145751,0.000264,3]
[385182453,1757679062438,-531.04384426,0.000264,3]
[385182454,1757679062447,-233.13074058,0.000264,3]
[385182457,1757679062458,-450.0,0.00026416,2]
[385182459,1757679062467,-1262.07,0.00026417,7]
[385182461,1757679062476,-152.22,0.00026469,7]
[385182463,1757679062485,-190.0,0.00026472,2]
[385182465,1757679062495,-800.0,0.00026473,2]
[385182467,1757679062504,-800.0,0.00026479,2]
[385182469,1757679062513,-500.0,0.00026496,2]
[385182471,1757679062522,-1100.0,0.00026498,2]
[385182473,1757679062531,-3577.33,0.000265,7]
[385182475,1757679062540,-109909.38,0.000265,7]
[385182477,1757679062549,-1262.07,0.00026517,7]
[385182479,1757679062558,-500.0,0.00026521,2]
[385182481,1757679062568,-500.0,0.00026536,2]
[385182483,1757679062577,-200.0,0.0002654,14]
[385182485,1757679062588,-1100.0,0.00026545,2]
[385182487,1757679062597,-1100.0,0.00026552,2]
[385182489,1757679062606,-1100.0,0.00026555,2]
[385182491,1757679062615,-152.22,0.00026569,7]
[385182493,1757679062625,-800.0,0.0002657,2]
[385182495,1757679062634,-554.0,0.00026576,2]
[385182497,1757679062643,-500.0,0.00026576,2]
[385182499,1757679062653,-500.0,0.00026589,2]
[385182501,1757679062665,-1100.0,0.00026598,2]
[385182503,1757679062675,-1262.07,0.00026617,7]
[385182505,1757679062684,-500.0,0.00026622,2]
[385182507,1757679062693,-800.0,0.00026625,2]
[385182509,1757679062702,-511.81222277,0.00026667,2]
[385182511,1757679062711,-152.22,0.00026669,7]
[385182513,1757679062720,-949.268779,0.00026676,2]
[385182515,1757679062730,-2074.89093185,0.0002669,6]
[385182517,1757679062739,-1262.07,0.00026717,7]
[385182519,1757679062748,-208.0,0.0002673,2]
[385182520,1757679062757,-1100.0,0.00026736,2]
[385182522,1757679062767,-1100.0,0.00026763,2]
[385182524,1757679062775,-152.22,0.00026769,7]
[385182526,1757679062785,-1262.07,0.00026817,7]
[385182529,1757679062795,-800.0,0.00026822,2]
[385182531,1757679062804,-1000.0,0.00026828,20]
[385182532,1757679062813,-1000.0,0.00026828,20]
[385182535,1757679062823,-800.0,0.00026836,2]
[385182537,1757679062833,-500.0,0.0002684,2]
[385182539,1757679062842,-1100.0,0.00026846,2]
[385182541,1757679062852,-554.0,0.0002685,2]
[385182543,1757679062862,-500.0,0.0002685,2]
[385182545,1757679062871,-152.22,0.00026869,7]
[385182546,1757679062880,-6579.77973379,0.00026875,30]
[385182549,1757679062889,-1100.0,0.00026877,2]
[385182551,1757679062898,-500.0,0.00026878,2]
[385182553,1757679062908,-500.0,0.00026884,2]
[385182555,1757679062917,-10010.32,0.000269,7]
[385182557,1757679062926,-500.0,0.00026905,2]
[385182559,1757679062935,-500.0,0.0002691,2]
[385182561,1757679062943,-1262.07,0.00026917,7]
[385182563,1757679062952,-1100.0,0.00026918,2]
[385182565,1757679062962,-800.0,0.00026921,2]
[385182567,1757679062971,-153.188836,0.00026944,9]
[385182569,1757679062980,-500.0,0.00026945,2]
[385182571,1757679062989,-800.0,0.00026951,2]
[385182573,1757679062998,-550.0,0.00026964,2]
[385182574,1757679063008,-152.22,0.00026969,7]
[385182577,1757679063017,-500.0,0.00026977,2]
[385182579,1757679063027,-2072.76,0.00026999,2]
[385182580,1757679063036,-160.0,0.00027,3]
[385182583,1757679063045,-48000.0,0.00027,2]
[385182584,1757679063055,-600.0,0.00027,14]
[385182586,1757679063065,-217.7145751,0.00027,30]
[385182589,1757679063075,-531.04384426,0.00027,30]
[385182590,1757679063084,-160.0,0.00027,30]
[385182593,1757679063094,-1100.0,0.00027007,2]
[385182595,1757679063104,-1000.0,0.0002701,5]
[385182596,1757679063114,-1262.07,0.00027017,7]
[385182599,1757679063124,-500.0,0.00027038,2]
[385182601,1757679063133,-800.0,0.00027058,2]
[385182603,1757679063142,-800.0,0.00027065,2]
[385182605,1757679063152,-500.0,0.00027068,2]
[385182607,1757679063161,-152.22,0.00027069,7]
[385182609,1757679063171,-800.0,0.00027084,2]
[385182611,1757679063182,-2074.89093185,0.0002709,6]
[385182613,1757679063191,-1442.375,0.00027099,2]
[385182615,1757679063201,-1184.63,0.000271,7]
[385182617,1757679063211,-500.0,0.00027111,2]
[385182619,1757679063220,-1262.07,0.00027117,7]
[385182621,1757679063230,-153.188836,0.00027119,7]
[385182622,1757679063239,-1001.3844099,0.00027123,3]
[385182624,1757679063249,-554.0,0.00027124,2]
[385182627,1757679063260,-500.0,0.00027124,2]
[385182629,1757679063270,-500.0,0.0002714,2]
[385182631,1757679063280,-800.0,0.00027156,2]
[385182641,1757679063376,-153.188836,0.00027162,3]
[385182643,1757679063386,-152.22,0.00027169,7]
[385182645,1757679063396,-1100.0,0.0002717,2]
[385182647,1757679063408,-500.0,0.00027177,2]
[385182649,1757679063418,-500.0,0.0002718,2]
[385182651,1757679063428,-800.0,0.00027192,2]
[385182653,1757679063438,-1442.375,0.00027199,2]
[385182655,1757679063448,-1262.07,0.00027217,7]
[385182657,1757679063458,-800.0,0.00027219,2]
[385182659,1757679063468,-500.0,0.00027227,2]
[385182661,1757679063478,-12379.59276688,0.00027242,13]
[385182663,1757679063488,-500.0,0.00027242,2]
[385182665,1757679063498,-1305.0,0.00027258,3]
[385182667,1757679063508,-1305.0,0.00027258,3]
[385182668,1757679063520,-1305.0,0.00027258,3]
[385182671,1757679063530,-152.22,0.00027269,7]
[385182672,1757679063540,-1100.0,0.0002728,2]
[385182674,1757679063550,-1442.375,0.00027299,2]
[385182676,1757679063559,-208.0,0.000273,2]
[385182678,1757679063569,-800.0,0.00027316,2]
[385182681,1757679063579,-1262.07,0.00027317,7]
[385182683,1757679063594,-500.0,0.0002734,2]
[385182685,1757679063604,-2400.0,0.00027341,2]
[385182687,1757679063614,-500.0,0.00027345,2]
[385182689,1757679063623,-152.22,0.00027369,7]
[385182691,1757679063635,-500.0,0.00027369,2]
[385182693,1757679063644,-197.44197985,0.0002739,2]
[385182695,1757679063656,-161.37333496,0.0002739,7]
[385182697,1757679063668,-400.0,0.0002739,7]
[385182699,1757679063678,-3999.999999,0.0002739,2]
[385182701,1757679063688,-500.0,0.0002739,2]
[385182703,1757679063699,-1100.0,0.00027393,2]
[385182705,1757679063709,-151.0,0.00027397,7]
[385182707,1757679063719,-217.109293,0.00027397,7]
[385182709,1757679063729,-161.779489,0.00027397,7]
[385182711,1757679063739,-161.779489,0.00027397,7]
[385182713,1757679063749,-161.779489,0.00027397,7]
[385182715,1757679063759,-161.779489,0.00027397,7]
[385182717,1757679063769,-657.05,0.00027397,7]
[385182719,1757679063778,-657.05,0.00027397,7]
[385182721,1757679063788,-657.05,0.00027397,7]
[385182723,1757679063797,-657.05,0.00027397,7]
[385182725,1757679063807,-657.05,0.00027397,7]
[385182727,1757679063816,-657.05,0.00027397,7]
[385182729,1757679063825,-657.05,0.00027397,7]
[385182731,1757679063834,-657.05,0.00027397,7]
[385182732,1757679063844,-657.05,0.00027397,7]
[385182734,1757679063854,-657.05,0.00027397,7]
[385182736,1757679063865,-657.05,0.00027397,7]
[385182738,1757679063875,-657.05,0.00027397,7]
[385182740,1757679063885,-657.05,0.00027397,7]
[385182742,1757679063895,-657.05,0.00027397,7]
[385182744,1757679063907,-657.05,0.00027397,7]
[385182746,1757679063918,-657.05,0.00027397,7]
[385182748,1757679063927,-657.05,0.00027397,7]
[385182750,1757679063941,-657.05,0.00027397,7]
[385182753,1757679063952,-657.05,0.00027397,7]
[385182755,1757679063962,-657.05,0.00027397,7]
[385182757,1757679063973,-657.05,0.00027397,7]
[385182759,1757679063983,-657.05,0.00027397,7]
[385182760,1757679063993,-657.05,0.00027397,7]
[385182763,1757679064004,-657.19036844,0.00027397,7]
[385182764,1757679064015,-1180.35972522,0.00027397,30]
[385182766,1757679064024,-480.0,0.00027397,2]
[385182768,1757679064034,-480.0,0.00027397,2]
[385182770,1757679064044,-480.0,0.00027397,2]
[385182772,1757679064053,-608.08009932,0.00027397,2]
[385182774,1757679064063,-151.0,0.00027397,7]
[385182776,1757679064072,-151.0,0.00027397,7]
[385182778,1757679064082,-151.0,0.00027397,7]
[385182781,1757679064092,-1000.0,0.00027397,7]
[385182782,1757679064101,-1000.0,0.00027397,7]
[385182785,1757679064111,-1000.0,0.00027397,7]
[385182787,1757679064120,-1000.0,0.00027397,7]
[385182789,1757679064130,-279.15225839,0.00027397,2]
[385182791,1757679064140,-500.0,0.00027397,5]
[385182792,1757679064150,-554.0,0.00027398,2]
[385182795,1757679064163,-244.0,0.00027398,2]
[385182796,1757679064172,-1442.375,0.00027399,2]
[385182798,1757679064181,-1584.04255427,0.00027399,120]
[385182800,1757679064191,-151.0,0.00027399,7]
[385182802,1757679064200,-151.0,0.00027399,7]
[385182804,1757679064210,-151.0,0.00027399,7]
[385182807,1757679064219,-151.0,0.00027399,7]
[385182809,1757679064229,-151.0,0.00027399,7]
[385182810,1757679064238,-500.0,0.00027406,2]
[385182812,1757679064248,-151.0,0.0002741,7]
[385182813,1757679064257,-1262.07,0.00027417,15]
[385182816,1757679064267,-500.0,0.00027437,120]
[385182817,1757679064277,-219.43,0.00027437,120]
[385182819,1757679064287,-200000.0,0.0002744,2]
[385182821,1757679064296,-151.0,0.0002744,7]
[385182823,1757679064306,-404.530053,0.0002744,7]
[385182825,1757679064317,-404.530053,0.0002744,7]
[385182827,1757679064327,-404.530053,0.0002744,7]
[385182829,1757679064338,-404.53005619,0.0002744,7]
[385182831,1757679064347,-151.0,0.0002744,7]
[385182833,1757679064357,-151.0,0.0002744,7]
[385182835,1757679064366,-659.217283,0.0002744,7]
[385182837,1757679064377,-659.217283,0.0002744,7]
[385182839,1757679064387,-659.217283,0.0002744,7]
[385182841,1757679064396,-659.217282,0.0002744,7]
[385182843,1757679064407,-151.0,0.0002744,7]
[385182845,1757679064417,-151.0,0.0002744,7]
[385182847,1757679064427,-151.0,0.0002744,7]
[385182849,1757679064437,-273.014433,0.0002744,7]
[385182851,1757679064448,-273.014433,0.0002744,7]
[385182853,1757679064462,-273.014433,0.0002744,7]
[385182855,1757679064472,-273.014428,0.0002744,7]
[385182857,1757679064481,-277.148617,0.0002744,7]
[385182859,1757679064491,-151.0,0.0002744,7]
[385182861,1757679064500,-151.0,0.0002744,7]
[385182864,1757679064510,-151.0,0.0002744,7]
[385182866,1757679064519,-800.0,0.00027452,2]
[385182868,1757679064529,-1100.0,0.00027468,2]
[385182870,1757679064539,-152.22,0.00027469,15]
[385182872,1757679064548,-2074.89093185,0.00027489,7]
[385182873,1757679064558,-153.188836,0.00027492,7]
[385182875,1757679064567,-1442.375,0.00027499,2]
[385182877,1757679064577,-389.03802,0.000275,120]
[385182879,1757679064590,-45281.43924515,0.000275,2]
[385182881,1757679064600,-389.03802,0.000275,120]
[385182883,1757679064609,-500.0,0.00027505,2]
[385182885,1757679064619,-653.09119509,0.00027512,5]
[385182887,1757679064630,-1262.07,0.00027517,15]
[385182889,1757679064640,-500.0,0.0002752,5]
[385182891,1757679064649,-500.0,0.0002752,20]
[385182893,1757679064662,-500.0,0.0002752,20]
[385182895,1757679064672,-500.0,0.0002752,5]
[385182897,1757679064682,-500.0,0.0002752,5]
[385182899,1757679064691,-500.0,0.0002752,5]
[385182901,1757679064701,-500.0,0.0002752,5]
[385182903,1757679064712,-500.0,0.0002752,20]
[385182905,1757679064721,-500.0,0.0002752,20]
[385182907,1757679064730,-500.0,0.0002752,20]
[385182909,1757679064740,-500.0,0.0002752,5]
[385182911,1757679064750,-500.0,0.0002752,5]
[385182913,1757679064760,-500.0,0.0002752,5]
[385182915,1757679064769,-500.0,0.0002752,5]
[385182917,1757679064778,-500.0,0.0002752,5]